[Event "German Masters 2020"]
[Site "Magdeburg"]
[Date "2020.08.22"]
[Round "7.4"]
[White "Bluebaum, Matthias"]
[Black "Meier, Georg"]
[Result "1/2-1/2"]
[ECO "E10"]
[WhiteElo "2647"]
[BlackElo "2621"]
[Annotator "ChessBase"]
[PlyCount "29"]
[EventDate "2020.08.16"]
[EventType "tourn"]
[EventCountry "GER"]
[SourceTitle "playchess.com"]
[Source "ChessBase"]
[SourceQuality "1"]
[TimeControl "40/5400+30:1800+30"]

1. d4 {[%emt 0:00:00]} Nf6 {[%emt 0:00:00]} 2. c4 {[%emt 0:00:00]} e6 {[%emt 0:00:00]} 3. Nf3 {[%emt 0:00:00]} d5 {[%emt 0:00:00]} 4. g3 {[%emt 0:00:00]} Bb4+ {[%emt 0:00:00]} 5. Bd2 {[%emt 0:00:04]} Be7 {[%emt 0:00:03]} 6. Bg2 {[%emt 0:00:03]} Nbd7 {[%emt 0:00:22]} 7. O-O {[%emt 0:00:11]} O-O {[%emt 0:00:08]} 8. Qc2 {[%emt 0:00:04]} c6 {[%emt 0:00:09]} 9. Rd1 {[%emt 0:00:04]} b6 {[%emt 0:00:13]} 10. Bf4 {[%emt 0:00:17]} Bb7 {[%emt 0:00:35]} 11. Ne5 {[%emt 0:00:06]} Nh5 {[%emt 0:00:06]} 12. Bd2 {[%emt 0:00:02]} Nhf6 {[%emt 0:00:06]} 13. Bf4 {[%emt 0:00:03]} Nh5 {[%emt 0:00:07]} 14. Bd2 {[%emt 0:00:03]} Nhf6 {[%emt 0:00:10]} 15. Bf4 {[%emt 0:00:03]} 1/2-1/2